fUSD/lending_fUSD_20240104
["ID","MTS","AMOUNT","RATE_DAILY","PERIOD"]
[310230777,1704405048595,-500.0,0.0003315,2]
[310230778,1704405048604,-500.0,0.0003315,2]
[310230779,1704405048614,-500.0,0.0003315,2]
[310230780,1704405048623,-555.44,0.0003315,2]
[310230781,1704405048633,-500.0,0.0003315,2]
[310230782,1704405048642,-500.0,0.0003315,2]
[310230783,1704405048655,-500.0,0.0003315,2]
[310230784,1704405048664,-500.0,0.0003315,2]
[310230785,1704405048675,-500.0,0.0003315,2]
[310230786,1704405048684,-500.0,0.0003315,2]
[310230787,1704405048694,-500.0,0.0003315,2]
[310230788,1704405048704,-500.0,0.0003315,2]
[310230789,1704405048715,-500.0,0.0003315,2]
[310230790,1704405048724,-261.85,0.0003315,2]
[310230791,1704405048734,-252.74638701,0.0003315,2]
[310230792,1704405048744,-500.0,0.0003315,2]
[310230793,1704405048754,-500.0,0.0003315,2]
[310230794,1704405048763,-500.0,0.0003315,2]
[310230795,1704405048774,-500.0,0.0003315,2]
[310230796,1704405048785,-966.67,0.0003315,2]
[310230797,1704405048795,-500.0,0.0003315,2]
[310230798,1704405048806,-500.0,0.0003315,2]
[310230799,1704405048814,-500.0,0.0003315,2]
[310230800,1704405048826,-160.7,0.0003315,2]
[310230801,1704405048836,-500.0,0.0003315,2]
[310230802,1704405048845,-543.015075,0.0003315,2]
[310230803,1704405048856,-617.98061877,0.0003315,2]
[310230804,1704405048865,-500.0,0.0003315,2]
[310230805,1704405048875,-238.09,0.0003315,2]
[310230806,1704405048886,-500.0,0.0003315,2]
[310230807,1704405048896,-743.24,0.0003315,2]
[310230808,1704405048904,-218.72,0.0003315,2]
[310230809,1704405048914,-265.81,0.0003315,2]
[310230810,1704405048923,-500.0,0.0003315,2]
[310230811,1704405048932,-500.0,0.0003315,2]
[310230812,1704405048942,-500.0,0.0003315,2]
[310230813,1704405048951,-576.04,0.0003315,2]
[310230814,1704405048961,-500.0,0.0003315,2]
[310230815,1704405048970,-553.93,0.0003315,2]
[310230816,1704405048980,-500.0,0.0003315,2]
[310230817,1704405048989,-500.0,0.0003315,2]
[310230818,1704405048998,-500.0,0.0003315,2]
[310230819,1704405049008,-500.0,0.0003315,2]
[310230820,1704405049018,-417.54,0.0003315,2]
[310230821,1704405049027,-500.0,0.0003315,2]
[310230822,1704405049037,-500.0,0.0003315,2]
[310230823,1704405049046,-500.0,0.0003315,2]
[310230824,1704405049055,-500.0,0.0003315,2]
[310230825,1704405049067,-500.0,0.0003315,2]
[310230826,1704405049076,-500.0,0.0003315,2]
[310230827,1704405049086,-274.28,0.0003315,2]
[310230828,1704405049095,-500.0,0.0003315,2]
[310230829,1704405049105,-427.7,0.0003315,2]
[310230830,1704405049115,-500.0,0.0003315,2]
[310230831,1704405049125,-538.80463763,0.0003315,2]
[310230832,1704405049134,-500.0,0.0003315,2]
[310230833,1704405049144,-641.08,0.0003315,2]
[310230834,1704405049154,-500.0,0.0003315,2]
[310230835,1704405049163,-500.0,0.0003315,2]
[310230836,1704405049173,-500.0,0.0003315,2]
[310230837,1704405049184,-483.89,0.0003315,2]
[310230838,1704405049194,-500.0,0.0003315,2]
[310230839,1704405049204,-500.0,0.0003315,2]
[310230840,1704405049214,-500.0,0.0003315,2]
[310230841,1704405049223,-500.0,0.0003315,2]
[310230842,1704405049233,-500.0,0.0003315,2]
[310230843,1704405049243,-717.23,0.0003315,2]
[310230844,1704405049253,-155.0,0.00033423,4]
[310230845,1704405049264,-500.0,0.00033423,2]
[310230846,1704405049274,-500.0,0.00033424,2]
[310230847,1704405049283,-500.0,0.00033424,2]
[310230848,1704405049294,-184.19526695,0.00033424,2]
[310230849,1704405049303,-500.0,0.00033424,2]
[310230850,1704405049313,-500.0,0.00033424,2]
[310230851,1704405049322,-286.86,0.00033424,2]
[310230852,1704405049332,-647.21,0.00033424,2]
[310230853,1704405049341,-500.0,0.00033424,2]
[310230854,1704405049351,-500.0,0.00033424,2]
[310230855,1704405049360,-253.45,0.00033424,2]
[310230856,1704405049371,-391.97,0.00033424,2]
[310230857,1704405049380,-500.0,0.00033424,2]
[310230858,1704405049390,-500.0,0.00033424,2]
[310230859,1704405049399,-500.0,0.00033424,2]
[310230860,1704405049409,-500.0,0.00033424,2]
[310230861,1704405049419,-500.0,0.00033424,2]
[310230862,1704405049428,-245.41,0.00033424,2]
[310230863,1704405049438,-405.46548832,0.00033424,2]
[310230864,1704405049449,-364.85892096,0.00033424,2]
[310230865,1704405049458,-500.0,0.00033424,2]
[310230866,1704405049468,-606.31168681,0.00033424,2]
[310230867,1704405049478,-500.0,0.00033424,2]
[310230868,1704405049488,-259.54458313,0.00033424,2]
[310230869,1704405049497,-500.0,0.00033424,2]
[310230870,1704405049507,-500.0,0.00033424,2]
[310230871,1704405049519,-500.0,0.00033424,2]
[310230872,1704405049528,-500.0,0.00033424,2]
[310230873,1704405049538,-500.0,0.00033424,2]
[310230874,1704405049548,-500.0,0.00033424,2]
[310230875,1704405049558,-500.0,0.00033424,2]
[310230876,1704405049567,-500.0,0.00033424,2]
[310230877,1704405049577,-500.0,0.00033424,2]
[310230878,1704405049587,-500.0,0.00033424,2]
[310230879,1704405049597,-607.75453028,0.00033424,2]
[310230880,1704405049606,-500.0,0.00033424,2]
[310230881,1704405049616,-500.0,0.00033424,2]
[310230882,1704405049625,-503.12,0.00033424,2]
[310230883,1704405049635,-500.0,0.00033424,2]
[310230884,1704405049644,-500.0,0.00033424,2]
[310230885,1704405049654,-500.0,0.00033424,2]
[310230886,1704405049663,-500.0,0.00033424,2]
[310230887,1704405049673,-500.0,0.00033424,2]
[310230888,1704405049682,-500.0,0.00033424,2]
[310230889,1704405049692,-500.0,0.00033424,2]
[310230890,1704405049702,-500.0,0.00033424,2]
[310230891,1704405049712,-500.0,0.00033424,2]
[310230892,1704405049721,-500.0,0.00033424,2]
[310230893,1704405049731,-500.0,0.00033424,2]
[310230894,1704405049740,-500.0,0.00033424,2]
[310230895,1704405049750,-501.6,0.00033424,2]
[310230896,1704405049760,-500.0,0.00033424,2]
[310230897,1704405049769,-500.0,0.00033424,2]
[310230898,1704405049778,-500.0,0.00033424,2]
[310230899,1704405049788,-552.24973579,0.00033424,2]
[310230900,1704405049797,-500.0,0.00033424,2]
[310230901,1704405049807,-500.0,0.00033424,2]
[310230902,1704405049817,-514.9,0.00033424,2]
[310230903,1704405049828,-500.0,0.00033424,2]
[310230904,1704405049837,-500.0,0.00033424,2]
[310230905,1704405049846,-500.0,0.00033424,2]
[310230906,1704405049856,-500.0,0.00033424,2]
[310230907,1704405049865,-500.0,0.00033424,2]
[310230908,1704405049875,-500.0,0.00033424,2]
[310230909,1704405049884,-500.0,0.00033424,2]
[310230910,1704405049893,-500.0,0.00033424,2]
[310230911,1704405049903,-160.79,0.00033424,2]
[310230912,1704405049912,-500.0,0.00033424,2]
[310230913,1704405049922,-500.0,0.00033424,2]
[310230914,1704405049931,-500.0,0.00033424,2]
[310230915,1704405049942,-500.0,0.00033424,2]
[310230916,1704405049953,-341.51362239,0.00033424,2]
[310230917,1704405049963,-443.74,0.00033424,2]
[310230918,1704405049973,-500.0,0.00033424,2]
[310230919,1704405049984,-500.0,0.00033424,2]
[310230920,1704405049994,-500.0,0.00033424,2]
[310230921,1704405050004,-500.0,0.00033424,2]
[310230922,1704405050014,-500.0,0.00033424,2]
[310230923,1704405050024,-500.0,0.00033424,2]
[310230924,1704405050034,-500.0,0.00033424,2]
[310230925,1704405050043,-500.0,0.00033424,2]
[310230926,1704405050053,-500.0,0.00033424,2]
[310230927,1704405050103,-500.0,0.00033424,2]
[310230928,1704405050113,-500.0,0.00033424,2]
[310230929,1704405050122,-500.0,0.00033424,2]
[310230930,1704405050132,-500.0,0.00033424,2]
[310230931,1704405050142,-500.0,0.00033424,2]
[310230932,1704405050151,-500.0,0.00033424,2]
[310230933,1704405050161,-500.0,0.00033424,2]
[310230934,1704405050171,-500.0,0.00033424,2]
[310230935,1704405050180,-500.0,0.00033424,2]
[310230936,1704405050189,-500.0,0.00033424,2]
[310230937,1704405050199,-500.0,0.00033424,2]
[310230938,1704405050209,-500.0,0.00033424,2]
[310230939,1704405050218,-616.2,0.00033424,2]
[310230940,1704405050227,-500.0,0.00033424,2]
[310230941,1704405050238,-500.0,0.00033424,2]
[310230942,1704405050248,-500.0,0.00033424,2]
[310230943,1704405050258,-352.57,0.00033424,2]
[310230944,1704405050267,-500.0,0.00033424,2]
[310230945,1704405050277,-500.0,0.00033424,2]
[310230946,1704405050287,-500.0,0.00033424,2]
[310230947,1704405050297,-269.96,0.00033424,2]
[310230948,1704405050306,-500.0,0.00033424,2]
[310230949,1704405050316,-966.67,0.00033424,2]
[310230950,1704405050325,-500.0,0.00033424,2]
[310230951,1704405050334,-500.0,0.00033424,2]
[310230952,1704405050344,-743.24,0.00033424,2]
[310230953,1704405050354,-396.52673541,0.00033424,2]
[310230954,1704405050364,-509.46,0.00033424,2]
[310230955,1704405050373,-500.0,0.00033424,2]
[310230956,1704405050383,-500.0,0.00033424,2]
[310230957,1704405050392,-553.93,0.00033424,2]
[310230958,1704405050402,-530.15,0.00033424,2]
[310230959,1704405050411,-500.0,0.00033424,2]
[310230960,1704405050420,-500.0,0.00033424,2]
[310230961,1704405050430,-500.0,0.00033424,2]
[310230962,1704405050439,-500.0,0.00033424,2]
[310230963,1704405050449,-615.14,0.00033424,2]
[310230964,1704405050458,-500.0,0.00033424,2]
[310230965,1704405050468,-500.0,0.00033424,2]
[310230966,1704405050479,-500.0,0.00033424,2]
[310230967,1704405050488,-418.01,0.00033461,2]
[310230968,1704405050497,-220.81326949,0.00033598,5]
[310230969,1704405050508,-153.83,0.000336,2]
[310230970,1704405050521,-169.48,0.00033651,2]
[310230971,1704405050532,-500.0,0.00033697,2]
[310230972,1704405050541,-500.0,0.00033698,2]
[310230973,1704405050551,-500.0,0.00033698,2]
[310230974,1704405050563,-500.0,0.00033698,2]
[310230975,1704405050574,-500.0,0.00033698,2]
[310230976,1704405050583,-647.21,0.00033698,2]
[310230977,1704405050593,-500.0,0.00033698,2]
[310230978,1704405050602,-500.0,0.00033698,2]
[310230979,1704405050612,-367.01,0.00033698,2]
[310230980,1704405050622,-500.0,0.00033698,2]
[310230981,1704405050632,-500.0,0.00033698,2]
[310230982,1704405050641,-287.63,0.00033698,2]
[310230983,1704405050651,-508.28981705,0.00033698,2]
[310230984,1704405050661,-500.0,0.00033698,2]
[310230985,1704405050670,-500.0,0.00033698,2]
[310230986,1704405050679,-611.70255727,0.00033698,2]
[310230987,1704405050688,-500.0,0.00033698,2]
[310230988,1704405050697,-500.0,0.00033698,2]
[310230989,1704405050706,-500.0,0.00033698,2]
[310230990,1704405050715,-500.0,0.00033698,2]
[310230991,1704405050724,-500.0,0.00033698,2]
[310230992,1704405050736,-500.0,0.00033698,2]
[310230993,1704405050748,-500.0,0.00033698,2]
[310230994,1704405050757,-500.0,0.00033698,2]
[310230995,1704405050766,-500.0,0.00033698,2]
[310230996,1704405050775,-187.41507968,0.00033698,2]
[310230997,1704405050784,-279.24072402,0.00033698,2]
[310230998,1704405050793,-580.7,0.00033698,2]
[310230999,1704405050802,-500.0,0.00033698,2]
[310231000,1704405050811,-500.0,0.00033698,2]
[310231001,1704405050821,-500.0,0.00033698,2]
[310231002,1704405050830,-500.0,0.00033698,2]
[310231003,1704405050839,-500.0,0.00033698,2]
[310231004,1704405050849,-500.0,0.00033698,2]
[310231005,1704405050858,-500.0,0.00033698,2]
[310231006,1704405050867,-501.6,0.00033698,2]
[310231007,1704405050877,-500.0,0.00033698,2]
[310231008,1704405050886,-611.24,0.00033698,2]
[310231009,1704405050896,-500.0,0.00033698,2]
[310231010,1704405050906,-500.0,0.00033698,2]
[310231011,1704405050915,-500.0,0.00033698,2]
[310231012,1704405050925,-500.0,0.00033698,2]
[310231013,1704405050934,-500.0,0.00033698,2]
[310231014,1704405050944,-497.8982,0.00033698,2]
[310231015,1704405050954,-623.54,0.00033698,2]
[310231016,1704405050963,-500.0,0.00033698,2]
[310231017,1704405050972,-500.0,0.00033698,2]
[310231018,1704405050982,-500.0,0.00033698,2]
[310231019,1704405050992,-246.19749805,0.00033698,2]
[310231020,1704405051001,-500.0,0.00033698,2]
[310231021,1704405051011,-500.0,0.00033698,2]
[310231022,1704405051021,-637.73388369,0.00033698,2]
[310231023,1704405051031,-500.0,0.00033698,2]
[310231024,1704405051040,-583.74115589,0.00033698,2]
[310231025,1704405051049,-500.0,0.00033698,2]
[310231026,1704405051059,-500.0,0.00033698,2]
[310231027,1704405051069,-500.0,0.00033698,2]
[310231028,1704405051078,-500.0,0.00033698,2]
[310231029,1704405051088,-500.0,0.00033698,2]
[310231030,1704405051097,-500.0,0.00033698,2]
[310231031,1704405051106,-312.71,0.00033698,2]
[310231032,1704405051116,-500.0,0.00033698,2]
[310231033,1704405051125,-500.0,0.00033698,2]
[310231034,1704405051134,-500.0,0.00033698,2]
[310231035,1704405051144,-500.0,0.00033698,2]
[310231036,1704405051154,-500.0,0.00033698,2]
[310231037,1704405051163,-500.0,0.00033698,2]
[310231038,1704405051172,-500.0,0.00033698,2]
[310231039,1704405051182,-500.0,0.00033698,2]
[310231040,1704405051191,-500.0,0.00033698,2]
[310231041,1704405051200,-500.0,0.00033698,2]
[310231042,1704405051210,-616.2,0.00033698,2]
[310231043,1704405051219,-500.0,0.00033698,2]
[310231044,1704405051229,-500.0,0.00033698,2]
[310231045,1704405051238,-500.0,0.00033698,2]
[310231046,1704405051247,-500.0,0.00033698,2]
[310231047,1704405051257,-500.0,0.00033698,2]
[310231048,1704405051266,-500.0,0.00033698,2]
[310231049,1704405051275,-500.0,0.00033698,2]
[310231050,1704405051284,-966.67,0.00033698,2]
[310231051,1704405051293,-500.0,0.00033698,2]
[310231052,1704405051303,-500.0,0.00033698,2]
[310231053,1704405051313,-743.24,0.00033698,2]
[310231054,1704405051323,-500.0,0.00033698,2]
[310231055,1704405051332,-500.0,0.00033698,2]
[310231056,1704405051342,-553.93,0.00033698,2]
[310231057,1704405051351,-229.84,0.00033698,2]
[310231058,1704405051360,-500.0,0.00033698,2]
[310231059,1704405051370,-500.0,0.00033698,2]
[310231060,1704405051379,-500.0,0.00033698,2]
[310231061,1704405051388,-500.0,0.00033698,2]
[310231062,1704405051399,-500.0,0.00033698,2]
[310231063,1704405051408,-500.0,0.00033698,2]
[310231064,1704405051418,-151.69832518,0.000339,2]
[310231065,1704405051427,-153.84,0.00033936,2]
[310231066,1704405051437,-556.33493885,0.00033967,7]
[310231067,1704405051446,-152.99210819,0.00033967,7]
[310231068,1704405051456,-171.54899497,0.00033967,7]
[310231069,1704405051465,-241.30413261,0.00033967,7]
[310231070,1704405051474,-205.75457957,0.00033967,7]
[310231071,1704405051485,-500.0,0.00033971,2]
[310231072,1704405051494,-382.36705833,0.00033972,2]
[310231073,1704405051503,-500.0,0.00033972,2]
[310231074,1704405051514,-500.0,0.00033972,2]
[310231075,1704405051523,-647.21,0.00033972,2]
[310231076,1704405051532,-500.0,0.00033972,2]
[310231077,1704405051541,-500.0,0.00033972,2]
[310231078,1704405051550,-500.0,0.00033972,2]
[310231079,1704405051559,-500.0,0.00033972,2]
[310231080,1704405051569,-500.0,0.00033972,2]
[310231081,1704405051579,-500.0,0.00033972,2]
[310231082,1704405051589,-169.71589111,0.00033972,2]
[310231083,1704405051598,-280.55587327,0.00033972,2]
[310231084,1704405051609,-500.0,0.00033972,2]
[310231085,1704405051618,-500.0,0.00033972,2]
[310231086,1704405051628,-500.0,0.00033972,2]
[310231087,1704405051637,-202.28497998,0.00033972,2]
[310231088,1704405051647,-484.24,0.00033972,2]
[310231089,1704405051657,-523.0209844,0.00033972,2]
[310231090,1704405051667,-500.0,0.00033972,2]
[310231091,1704405051676,-500.0,0.00033972,2]
[310231092,1704405051685,-500.0,0.00033972,2]
[310231093,1704405051694,-162.17012902,0.00033972,2]
[310231094,1704405051703,-501.6,0.00033972,2]
[310231095,1704405051713,-500.0,0.00033972,2]
[310231096,1704405051722,-460.70129183,0.00033972,2]
[310231097,1704405051732,-500.0,0.00033972,2]
[310231098,1704405051742,-500.0,0.00033972,2]
[310231099,1704405051752,-500.0,0.00033972,2]
[310231100,1704405051762,-500.0,0.00033972,2]
[310231101,1704405051771,-500.0,0.00033972,2]
[310231102,1704405051782,-500.0,0.00033972,2]
[310231103,1704405051791,-500.0,0.00033972,2]
[310231104,1704405051801,-500.0,0.00033972,2]
[310231105,1704405051811,-500.0,0.00033972,2]
[310231106,1704405051820,-500.0,0.00033972,2]
[310231107,1704405051831,-290.92,0.00033972,2]
[310231108,1704405051840,-181.99,0.00033972,2]
[310231109,1704405051849,-500.0,0.00033972,2]
[310231110,1704405051858,-500.0,0.00033972,2]
[310231111,1704405051869,-500.0,0.00033972,2]
[310231112,1704405051879,-500.0,0.00033972,2]
[310231113,1704405051888,-500.0,0.00033972,2]
[310231114,1704405051898,-500.0,0.00033972,2]
[310231115,1704405051907,-500.0,0.00033972,2]
[310231116,1704405051916,-398.87564509,0.00033972,2]
[310231117,1704405051926,-500.0,0.00033972,2]
[310231118,1704405051935,-500.0,0.00033972,2]
[310231119,1704405051944,-500.0,0.00033972,2]
[310231120,1704405051953,-616.2,0.00033972,2]
[310231121,1704405051962,-281.55,0.00033972,2]
[310231122,1704405051971,-264.53,0.00033972,2]
[310231123,1704405051981,-500.0,0.00033972,2]
[310231124,1704405051990,-500.0,0.00033972,2]
[310231125,1704405051999,-500.0,0.00033972,2]
[310231126,1704405052009,-526.34,0.00033972,2]
[310231127,1704405052020,-500.0,0.00033972,2]
[310231128,1704405052029,-966.67,0.00033972,2]
[310231129,1704405052038,-500.0,0.00033972,2]
[310231130,1704405052047,-500.0,0.00033972,2]
[310231131,1704405052057,-743.24,0.00033972,2]
[310231132,1704405052066,-367.08,0.00033972,2]
[310231133,1704405052076,-553.36,0.00033972,2]
[310231134,1704405052085,-553.93,0.00033972,2]
[310231135,1704405052094,-500.0,0.00033972,2]
[310231136,1704405052103,-500.0,0.00033972,2]
[310231137,1704405052112,-543.75495996,0.00033972,2]
[310231138,1704405052121,-500.0,0.00033972,2]
[310231139,1704405052130,-500.0,0.00033972,2]
[310231140,1704405052139,-500.0,0.00033972,2]
[310231141,1704405052148,-100000.0,0.00034,4]
[310231142,1704405052157,-1000.0,0.00034,4]
[310231143,1704405052167,-159.7455037,0.00034175,2]
[310231144,1704405052176,-500.0,0.00034245,2]
[310231145,1704405052186,-500.0,0.00034245,2]
[310231146,1704405052197,-500.0,0.00034245,2]
[310231147,1704405052207,-500.0,0.00034245,2]
[310231148,1704405052218,-463.43913107,0.00034246,2]
[310231149,1704405052236,-500.0,0.00034246,2]
[310231150,1704405052245,-647.21,0.00034246,2]
[310231151,1704405052255,-500.0,0.00034246,2]
[310231152,1704405052265,-595.74491959,0.00034246,2]
[310231153,1704405052275,-500.0,0.00034246,2]
[310231154,1704405052284,-500.0,0.00034246,2]
[310231155,1704405052293,-500.0,0.00034246,2]
[310231156,1704405052313,-500.0,0.00034246,2]
[310231157,1704405052323,-500.0,0.00034246,2]
[310231158,1704405052332,-500.0,0.00034246,2]
[310231159,1704405052341,-500.0,0.00034246,2]
[310231160,1704405052350,-500.0,0.00034246,2]
[310231161,1704405052359,-540.38,0.00034246,2]
[310231162,1704405052369,-341.13,0.00034246,2]
[310231163,1704405052379,-501.6,0.00034246,2]
[310231164,1704405052388,-500.0,0.00034246,2]
[310231165,1704405052398,-500.0,0.00034246,2]
[310231166,1704405052409,-500.0,0.00034246,2]
[310231167,1704405052418,-154.49874466,0.00034246,2]
[310231168,1704405052428,-500.0,0.00034246,2]
[310231169,1704405052437,-639.61,0.00034246,2]
[310231170,1704405052446,-500.0,0.00034246,2]
[310231171,1704405052455,-500.0,0.00034246,2]
[310231172,1704405052466,-500.0,0.00034246,2]
[310231173,1704405052476,-171.85,0.00034246,2]
[310231174,1704405052485,-550.0,0.00034246,2]
[310231175,1704405052494,-219.55,0.00034246,2]
[310231176,1704405052504,-500.0,0.00034246,2]
[310231177,1704405052515,-366.82374437,0.00034246,2]
[310231178,1704405052524,-500.0,0.00034246,2]
[310231179,1704405052534,-500.0,0.00034246,2]
[310231180,1704405052543,-500.0,0.00034246,2]
[310231181,1704405052552,-500.0,0.00034246,2]
[310231182,1704405052562,-500.0,0.00034246,2]
[310231183,1704405052571,-500.0,0.00034246,2]
[310231184,1704405052582,-616.2,0.00034246,2]
[310231185,1704405052591,-500.0,0.00034246,2]
[310231186,1704405052601,-500.0,0.00034246,2]
[310231187,1704405052610,-500.0,0.00034246,2]
[310231188,1704405052620,-288.10675936,0.00034246,2]
[310231189,1704405052629,-966.67,0.00034246,2]
[310231190,1704405052640,-500.0,0.00034246,2]
[310231191,1704405052650,-500.0,0.00034246,2]
[310231192,1704405052661,-743.24,0.00034246,2]
[310231193,1704405052672,-553.93,0.00034246,2]
[310231194,1704405052685,-500.0,0.00034246,2]
[310231195,1704405052695,-500.0,0.00034246,2]
[310231196,1704405052706,-500.0,0.00034246,2]
[310231197,1704405052716,-500.0,0.00034246,2]
[310231198,1704405052726,-500.0,0.00034246,2]
[310231199,1704405052736,-500.0,0.0003452,2]
[310231200,1704405052745,-647.21,0.0003452,2]
[310231201,1704405052755,-500.0,0.0003452,2]
[310231202,1704405052766,-500.0,0.0003452,2]
[310231203,1704405052776,-500.0,0.0003452,2]
[310231204,1704405052786,-500.0,0.0003452,2]
[310231205,1704405052795,-500.0,0.0003452,2]
[310231206,1704405052803,-420.13,0.0003452,2]
[310231207,1704405052815,-500.0,0.0003452,2]
[310231208,1704405052826,-500.0,0.0003452,2]
[310231209,1704405052836,-500.0,0.0003452,2]
[310231210,1704405052845,-501.6,0.0003452,2]
[310231211,1704405052856,-500.0,0.0003452,2]
[310231212,1704405052866,-500.0,0.0003452,2]
[310231213,1704405052877,-500.0,0.0003452,2]
[310231214,1704405052886,-500.0,0.0003452,2]
[310231215,1704405052897,-500.0,0.0003452,2]
[310231216,1704405052906,-500.0,0.0003452,2]
[310231217,1704405052917,-500.0,0.0003452,2]
[310231218,1704405052927,-500.0,0.0003452,2]
[310231219,1704405052938,-500.0,0.0003452,2]
[310231220,1704405052948,-500.0,0.0003452,2]
[310231221,1704405052958,-500.0,0.0003452,2]
[310231222,1704405052967,-500.0,0.0003452,2]
[310231223,1704405052976,-500.0,0.0003452,2]
[310231224,1704405052986,-616.2,0.0003452,2]
[310231225,1704405052996,-500.0,0.0003452,2]
[310231226,1704405053006,-500.0,0.0003452,2]
[310231227,1704405053016,-500.0,0.0003452,2]
[310231228,1704405053025,-966.67,0.0003452,2]
[310231229,1704405053036,-242.54,0.0003452,2]
[310231230,1704405053045,-500.0,0.0003452,2]
[310231231,1704405053056,-743.24,0.0003452,2]
[310231232,1704405053065,-553.93,0.0003452,2]
[310231233,1704405053075,-500.0,0.0003452,2]
[310231234,1704405053085,-500.0,0.0003452,2]
[310231235,1704405053094,-500.0,0.0003452,2]
[310231236,1704405053104,-500.0,0.0003452,2]
[310231237,1704405053113,-500.0,0.0003452,2]
[310231238,1704405053123,-176.29,0.00034615,2]
[310231239,1704405053133,-500.0,0.00034693,2]
[310231240,1704405053144,-500.0,0.00034794,2]
[310231241,1704405053153,-647.21,0.00034794,2]
[310231242,1704405053164,-500.0,0.00034794,2]
[310231243,1704405053174,-500.0,0.00034794,2]
[310231244,1704405053184,-500.0,0.00034794,2]
[310231245,1704405053195,-500.0,0.00034794,2]
[310231246,1704405053205,-500.0,0.00034794,2]
[310231247,1704405053214,-500.0,0.00034794,2]
[310231248,1704405053224,-500.0,0.00034794,2]
[310231249,1704405053234,-501.6,0.00034794,2]
[310231250,1704405053244,-178.8066982,0.00034794,2]
[310231251,1704405053254,-500.0,0.00034794,2]
[310231252,1704405053264,-500.0,0.00034794,2]
[310231253,1704405053273,-500.0,0.00034794,2]
[310231254,1704405053283,-500.0,0.00034794,2]
[310231255,1704405053293,-535.02301158,0.00034794,2]
[310231256,1704405053303,-500.0,0.00034794,2]
[310231257,1704405053314,-500.0,0.00034794,2]
[310231258,1704405053324,-500.0,0.00034794,2]
[310231259,1704405053334,-500.0,0.00034794,2]
[310231260,1704405053343,-500.0,0.00034794,2]
[310231261,1704405053353,-500.0,0.00034794,2]
[310231262,1704405053363,-500.0,0.00034794,2]
[310231263,1704405053374,-616.2,0.00034794,2]
[310231264,1704405053384,-500.0,0.00034794,2]
[310231265,1704405053394,-500.0,0.00034794,2]
[310231266,1704405053404,-966.67,0.00034794,2]
[310231267,1704405053414,-500.0,0.00034794,2]
[310231268,1704405053423,-743.24,0.00034794,2]
[310231269,1704405053434,-553.93,0.00034794,2]
[310231270,1704405053444,-500.0,0.00034794,2]
[310231271,1704405053454,-500.0,0.00034794,2]
[310231272,1704405053463,-290.16,0.00034794,2]
[310231273,1704405053473,-500.0,0.00034794,2]
[310231274,1704405053482,-500.0,0.00034794,2]
[310231275,1704405053491,-153.83,0.000348,2]
[310231276,1704405053501,-400.0,0.00034857,2]